fUST/lending_fUST_20240128
["ID","MTS","AMOUNT","RATE_DAILY","PERIOD"]
[312881152,1706399440565,-151.0,0.0003,2]
[312881154,1706399440573,-151.0,0.0003,2]
[312881156,1706399440583,-212.272603,0.0003,2]
[312881158,1706399440592,-212.272603,0.0003,2]
[312881160,1706399440601,-151.0,0.0003,2]
[312881162,1706399440611,-151.0,0.0003,2]
[312881164,1706399440620,-151.0,0.0003,2]
[312881166,1706399440629,-166.92294,0.0003,2]
[312881168,1706399440638,-166.92294,0.0003,2]
[312881170,1706399440646,-480.768117,0.0003,2]
[312881172,1706399440655,-480.768119,0.0003,2]
[312881174,1706399440664,-3539.968714,0.0003,2]
[312881175,1706399440674,-3539.968716,0.0003,2]
[312881177,1706399440684,-278.0,0.0003,2]
[312881179,1706399440694,-1500.0,0.0003,2]
[312881181,1706399440702,-151.0,0.00030051,2]
[312881183,1706399440711,-151.0,0.00030051,2]
[312881185,1706399440721,-166.92294,0.00030051,2]
[312881187,1706399440730,-166.92294,0.00030051,2]
[312881190,1706399440742,-166.92294,0.00030051,2]
[312881192,1706399440752,-166.92294,0.00030051,2]
[312881193,1706399440761,-151.0,0.00030052,2]
[312881195,1706399440770,-151.0,0.00030052,2]
[312881197,1706399440779,-151.0,0.00030052,2]
[312881199,1706399440788,-212.272603,0.00030052,2]
[312881201,1706399440798,-212.272603,0.00030052,2]
[312881203,1706399440808,-151.0,0.00030052,2]
[312881205,1706399440817,-151.0,0.00030052,2]
[312881207,1706399440826,-151.0,0.00030052,2]
[312881209,1706399440834,-166.92294,0.00030052,2]
[312881211,1706399440844,-166.92294,0.00030052,2]
[312881213,1706399440853,-212.272603,0.00030075,2]
[312881215,1706399440862,-212.272603,0.00030075,2]
[312881217,1706399440871,-212.272603,0.00030075,2]
[312881219,1706399440880,-212.272603,0.00030075,2]
[312881220,1706399440890,-151.0,0.00030075,2]
[312881221,1706399440898,-151.0,0.00030075,2]
[312881222,1706399440907,-151.0,0.00030075,2]
[312881223,1706399440916,-166.048646,0.00030075,2]
[312881224,1706399440925,-151.0,0.00030075,2]
[312881225,1706399440934,-166.92294,0.00030075,2]
[312881226,1706399440943,-166.92294,0.00030075,2]
[312881227,1706399440952,-620.06441995,0.00030076,2]
[312881228,1706399440962,-153.0,0.00030137,2]
[312881229,1706399440971,-153.0,0.00030137,2]
[312881230,1706399440979,-306.0,0.00030137,2]
[312881231,1706399440989,-383.3948546,0.00030137,2]
[312881232,1706399440998,-153.0,0.00030137,2]
[312881239,1706399441079,-199.4415769,0.00030137,2]
[312881241,1706399441089,-153.0,0.00030137,2]
[312881243,1706399441098,-153.0,0.00030137,2]
[312881245,1706399441107,-199.4415769,0.00030137,2]
[312881247,1706399441116,-199.4415769,0.00030137,2]
[312881249,1706399441126,-199.4415769,0.00030137,2]
[312881251,1706399441136,-199.4415769,0.00030137,2]
[312881253,1706399441144,-398.8831538,0.00030137,2]
[312881255,1706399441154,-157.894736,0.00030137,2]
[312881257,1706399441163,-155.0,0.00030137,2]
[312881260,1706399441173,-2267.83157066,0.00030249,4]
[312881262,1706399441184,-206.17722542,0.00030259,4]
[312881264,1706399441193,-562.98087037,0.00030259,2]
[312881266,1706399441203,-309.97929762,0.0003026,4]
[312881268,1706399441212,-87.42143498,0.00030261,14]
[312881284,1706399441360,-10202.84952288,0.00030261,14]
[312881459,1706400632007,-639.10324176,0.00018485,2]
[312881462,1706400632018,-170.17695293,0.00018486,2]
[312881464,1706400632027,-243.3365684,0.00018583,2]
[312881465,1706400632036,-523.34168566,0.00018584,2]
[312881467,1706400632045,-12772.33906149,0.00018584,2]
[312881497,1706400638568,-7108.70347094,0.00018584,2]
[312881498,1706400638577,-595.56031941,0.00018585,2]
[312881499,1706400638587,-15633.02905683,0.00018585,2]
[312881501,1706400638596,-47257.2151983,0.00018586,2]
[312881503,1706400638605,-4817.36489966,0.00018586,2]
[312881505,1706400638615,-2075.77672297,0.00018586,2]
[312881507,1706400638624,-155.40417859,0.00018587,2]
[312881509,1706400638633,-7134.52461811,0.00018587,2]
[312881511,1706400638643,-500.0,0.00018587,2]
[312881513,1706400638652,-2706.67374614,0.00018587,2]
[312881515,1706400638661,-1294.67927842,0.00018587,2]
[312881517,1706400638670,-14341.5924672,0.0001859,2]
[312881519,1706400638679,-1583.7528565,0.00019,2]
[312881522,1706400638688,-169.278428,0.00019178,2]
[312881524,1706400638697,-541.4543357,0.00019237,2]
[312881526,1706400638705,-168.197658,0.00019499,2]
[312881528,1706400638714,-522.50744065,0.0001963,2]
[312881530,1706400638723,-301.91875218,0.0001963,2]
[312881531,1706400638733,-155.37359722,0.0001963,2]
[312881533,1706400638742,-625.17876758,0.0001963,2]
[312881534,1706400638752,-309.95093829,0.0001963,2]
[312881537,1706400638761,-171.9740857,0.0001963,2]
[312881540,1706400638770,-166.80502533,0.0001963,2]
[312881543,1706400638779,-164.91117527,0.0001963,2]
[312881545,1706400638788,-247.50946715,0.0001963,2]
[312881547,1706400638796,-181.11768672,0.0001963,2]
[312881549,1706400638806,-521.0,0.0001963,2]
[312881550,1706400638816,-1267.85460751,0.0001963,2]
[312881551,1706400638825,-329.79784935,0.0001963,2]
[312881552,1706400638834,-155.14803687,0.0001963,2]
[312881553,1706400638843,-3921.59583547,0.0001963,2]
[312881554,1706400638853,-310.03565411,0.0001963,2]
[312881555,1706400638861,-1576.73391587,0.0001963,2]
[312881556,1706400638870,-5354.15772283,0.00019631,2]
[312881557,1706400638879,-617.20703081,0.00019632,2]
[312881558,1706400638889,-29428.34065491,0.00019632,2]
[312881559,1706400638898,-1046.85514505,0.0002,2]
[312881560,1706400638907,-155.01860223,0.0002,2]
[312881561,1706400638916,-679.3029243,0.0002,2]
[312881562,1706400638926,-1199.09633829,0.0002,2]
[312881563,1706400638935,-155.01860223,0.0002,2]
[312881564,1706400638944,-155.01860223,0.0002,2]
[312881565,1706400638954,-200.0,0.0002,2]
[312881566,1706400638962,-259.07239837,0.0002,2]
[312881567,1706400638972,-155.01860223,0.0002,2]
[312881568,1706400638981,-244.16390159,0.0002,2]
[312881569,1706400638990,-168.99927393,0.0002,2]
[312881570,1706400638999,-156.28562946,0.0002,2]
[312881571,1706400639008,-155.02015262,0.0002,2]
[312881572,1706400639017,-168.803845,0.0002068,2]
[312881573,1706400639027,-688.5172537,0.00021908,2]
[312881574,1706400639036,-288.64103576,0.00021909,2]
[312881575,1706400639045,-265.43031538,0.0002191,2]
[312881576,1706400639054,-166.666666,0.00021918,2]
[312881577,1706400639064,-562.98087037,0.00021998,2]
[312881578,1706400639073,-2036.12411825,0.00022,2]
[312881579,1706400639083,-426.38170713,0.00022,2]
[312881580,1706400639095,-3971.98419525,0.00022,2]
[312881581,1706400639105,-164.09330822,0.00022,2]
[312881582,1706400639114,-293.70793193,0.00022,4]
[312881583,1706400639124,-327.61566675,0.00022,2]
[312881584,1706400639133,-166.666666,0.00022431,2]
[312881585,1706400639143,-166.666666,0.00022944,2]
[312881586,1706400639155,-9947.92180076,0.00023,2]
[312881587,1706400639164,-1416.67721386,0.00023,2]
[312881588,1706400639174,-166.666666,0.00023456,2]
[312881589,1706400639183,-166.666666,0.00023969,2]
[312881590,1706400639192,-4017.99473319,0.00024,2]
[312881591,1706400639201,-166.666666,0.00024482,2]
[312881592,1706400639210,-498.87930977,0.0002496,5]
[312881593,1706400639220,-4727.98807036,0.00025,2]
[312881594,1706400639229,-7649.9786433,0.00025,2]
[312881595,1706400639238,-155.01860223,0.00025,2]
[312881596,1706400639247,-260.27250039,0.00025,2]
[312881597,1706400639258,-167.80993341,0.00025,2]
[312881598,1706400639267,-851.06760442,0.00025,2]
[312881599,1706400639277,-1958.72935728,0.00025,2]
[312881600,1706400639286,-680.67452781,0.00025,2]
[312881601,1706400639295,-155.02015262,0.00025,2]
[312881602,1706400639305,-194.9590979,0.00025479,2]
[312881603,1706400639314,-290.6944281,0.00027,2]
[312881604,1706400639323,-155.01860223,0.00027233,4]
[312881605,1706400639333,-862.90339179,0.0002728,2]
[312881606,1706400639342,-582.267551,0.00027397,2]
[312881607,1706400639351,-18912.79,0.00027397,3]
[312881608,1706400639360,-15760.66,0.00027397,3]
[312881609,1706400639370,-13133.88,0.00027397,3]
[312881610,1706400639379,-206.17722542,0.00027852,2]
[312881611,1706400639388,-259.73640251,0.00027852,7]
[312881612,1706400639398,-309.97929762,0.00027852,2]
[312881613,1706400639407,-205.47568933,0.00027852,2]
[312881614,1706400639416,-309.86375708,0.00027852,2]
[312881615,1706400639426,-212.60911444,0.00027852,2]
[312881616,1706400639435,-235.35517432,0.00027852,2]
[312881617,1706400639525,-1647.68909772,0.000279,2]
[312881618,1706400639534,-158.56416615,0.000279,2]
[312881619,1706400639543,-200.96358611,0.00028,2]
[312881620,1706400639557,-239.76670397,0.00028,2]
[312881621,1706400639567,-600.0,0.00028,2]
[312881622,1706400639576,-1500.0,0.00028,2]
[312881623,1706400639585,-159.42971699,0.0002828,2]
[312881624,1706400639600,-632.14516959,0.00028644,2]
[312881625,1706400639610,-582.267551,0.00028919,2]
[312881626,1706400639620,-1933.42796518,0.00029,2]
[312881627,1706400639630,-310.03720446,0.00029,2]
[312881628,1706400639640,-9132.4701419,0.00029,4]
[312881629,1706400639649,-1000.0,0.00029,2]
[312881630,1706400639658,-309.87175152,0.00029,2]
[312881631,1706400639668,-155.0,0.00029,2]
[312881632,1706400639677,-1500.0,0.00029,2]
[312881633,1706400639686,-200.0,0.000293,4]
[312881634,1706400639695,-306.0,0.00029315,2]
[312881635,1706400639704,-153.0,0.00029315,2]
[312881636,1706400639713,-383.3948546,0.00029315,2]
[312881637,1706400639723,-153.0,0.00029315,2]
[312881638,1706400639734,-199.4415769,0.00029315,2]
[312881639,1706400639745,-153.0,0.00029315,2]
[312881640,1706400639754,-199.4415769,0.00029315,2]
[312881641,1706400639765,-153.0,0.00029315,2]
[312881642,1706400639775,-199.4415769,0.00029315,2]
[312881643,1706400639783,-199.4415769,0.00029315,2]
[312881644,1706400639793,-153.0,0.00029315,2]
[312881645,1706400639802,-199.4415769,0.00029315,2]
[312881646,1706400639814,-199.4415769,0.00029315,2]
[312881647,1706400639825,-153.0,0.00029315,2]
[312881648,1706400639834,-199.4415769,0.00029315,2]
[312881649,1706400639845,-379178.84901,0.00029999,2]
[312881650,1706400639856,-4772.09048546,0.0003,2]
[312881651,1706400639865,-132043.05175931,0.0003,4]
[312881652,1706400639878,-10202.84952288,0.0003,4]
[312881653,1706400639890,-4085.33303769,0.0003,4]
[312881654,1706400639899,-244.44828906,0.0003,4]
[312881655,1706400639909,-156.85040772,0.0003,4]
[312881656,1706400639918,-689.09430435,0.0003,4]
[312881657,1706400639927,-2850.44166112,0.0003,2]
[312881658,1706400639936,-155.01860223,0.0003,4]
[312881659,1706400639945,-195.57103754,0.0003,2]
[312881660,1706400639954,-2079.53980355,0.0003,2]
[312881661,1706400639963,-4577.70352548,0.0003,3]
[312881662,1706400639972,-2322.63899866,0.0003,4]
[312881663,1706400639982,-309.87922767,0.0003,2]
[312881664,1706400639991,-155.01860223,0.0003,4]
[312881665,1706400640000,-280.0,0.0003,2]
[312881666,1706400640010,-1500.0,0.0003,2]
[312881667,1706400640019,-158.56416615,0.0003006,2]
[312881668,1706400640030,-620.60725848,0.00030076,2]
[312881669,1706400640039,-500.0,0.00030088,2]
[312881670,1706400640048,-500.0,0.00030088,2]
[312881671,1706400640058,-500.0,0.00030088,2]
[312881672,1706400640067,-500.0,0.00030088,2]
[312881673,1706400640076,-500.0,0.00030088,2]
[312881674,1706400640085,-500.0,0.00030088,2]
[312881675,1706400640095,-190.40084948,0.00030088,2]
[312881676,1706400640104,-500.0,0.00030088,2]
[312881677,1706400640113,-500.0,0.00030088,2]
[312881678,1706400640122,-500.0,0.00030088,2]
[312881679,1706400640132,-500.0,0.00030088,2]
[312881680,1706400640142,-500.0,0.00030088,2]
[312881681,1706400640151,-500.0,0.00030088,2]
[312881682,1706400640160,-500.0,0.00030088,2]
[312881683,1706400640169,-7.71275838,0.00030088,2]
[312882005,1706400646138,-639.10324176,0.00028989,2]
[312882007,1706400646148,-199.3339408,0.00029315,2]
[312882009,1706400646159,-209.0,0.00030088,2]
[312882011,1706400646169,-402.19084911,0.00030088,2]
[312882013,1706400646178,-500.0,0.00030088,2]
[312882015,1706400646188,-207.74651376,0.00030088,2]
[312882017,1706400646197,-500.0,0.00030088,2]
[312882019,1706400646207,-500.0,0.00030088,2]
[312882021,1706400646216,-429.08224829,0.00030088,2]
[312882023,1706400646225,-500.0,0.00030088,2]
[312882025,1706400646235,-500.0,0.00030088,2]
[312882027,1706400646244,-500.0,0.00030088,2]
[312882029,1706400646254,-500.0,0.00030088,2]
[312882031,1706400646263,-500.0,0.00030088,2]
[312882033,1706400646272,-443.57107396,0.00030088,2]
[312882035,1706400646287,-500.0,0.00030088,2]
[312882037,1706400646296,-500.0,0.00030088,2]
[312882039,1706400646306,-246.46763306,0.00030088,2]
[312882041,1706400646315,-500.0,0.00030088,2]
[312882043,1706400646324,-500.0,0.00030088,2]
[312882045,1706400646334,-500.0,0.00030088,2]
[312882047,1706400646343,-500.0,0.00030088,2]
[312882049,1706400646352,-500.0,0.00030088,2]
[312882051,1706400646362,-500.0,0.00030088,2]
[312882053,1706400646371,-500.0,0.00030088,2]
[312882055,1706400646380,-500.0,0.00030088,2]
[312882057,1706400646390,-500.0,0.00030088,2]
[312882059,1706400646399,-500.0,0.00030088,2]
[312882061,1706400646409,-500.0,0.00030088,2]
[312882063,1706400646418,-500.0,0.00030088,2]
[312882065,1706400646427,-500.0,0.00030088,2]
[312882067,1706400646437,-486.93826896,0.00030088,2]
[312882069,1706400646447,-500.0,0.00030088,2]
[312882071,1706400646456,-500.0,0.00030088,2]
[312882073,1706400646466,-190.08273826,0.00030089,3]
[312882075,1706400646475,-2230.19722551,0.00030089,5]
[312882076,1706400646498,-342.36884967,0.00030089,5]
[312882673,1706400657112,270.00865697,0.00030087,30]
[312882674,1706400675226,270.00865697,0.00030085,30]
[312882675,1706400691118,270.00865697,0.00030085,30]
[312882676,1706400707205,210.0444102,0.00030085,30]
[312882678,1706400756844,3462.9,0.00031,17]
[312883694,1706401838248,-10202.84952288,0.00019969,2]
[312883838,1706402229790,259.73640251,0.00018894,7]
[312883839,1706402722570,402.08668604,0.00031,17]
[312883841,1706402925541,300.0,0.00031,17]
[312883842,1706402982170,301.78497184,0.00031,17]
[312883843,1706403008648,300.0,0.00031,17]
[312883990,1706403039238,-155.01860223,0.00018867,3]
[312883991,1706403039248,-4106.34079677,0.00018867,2]
[312883992,1706403039258,-155.01860223,0.00018868,2]
[312883993,1706403039269,-15633.02905683,0.00018868,2]
[312883994,1706403039280,-562.98087037,0.0001889,2]
[312883995,1706403039289,-688.5172537,0.0001889,2]
[312883996,1706403039302,-617.20703081,0.0001889,2]
[312883997,1706403039314,-288.64103576,0.00018892,2]
[312883998,1706403039323,-235.35517432,0.00018894,2]
[312883999,1706403039332,-212.60911444,0.00018894,2]
[312884000,1706403039342,-309.97929762,0.00018894,2]
[312884001,1706403039351,-206.17722542,0.00018894,2]
[312884002,1706403039361,-2471.53364658,0.000189,2]
[312884004,1706403039370,-1583.7528565,0.00019,2]
[312884005,1706403039381,-169.199331,0.00019178,2]
[312884007,1706403039390,-4007.41562565,0.00019966,2]
[312884009,1706403039399,-155.09920622,0.0002,2]
[312884011,1706403039409,-1199.09633829,0.0002,2]
[312884012,1706403039419,-1046.85514505,0.0002,2]
[312884014,1706403039430,-155.02015262,0.0002,2]
[312884015,1706403039440,-168.99927393,0.0002,2]
[312884016,1706403039450,-244.16390159,0.0002,2]
[312884017,1706403039460,-156.28562946,0.0002,2]
[312884018,1706403039470,-259.07239837,0.0002,2]
[312884019,1706403039479,-200.0,0.0002,2]
[312884020,1706403039489,-3082.08889859,0.0002,2]
[312884021,1706403039500,-679.3029243,0.00021917,2]
[312884022,1706403039510,-166.666666,0.00021918,2]
[312884023,1706403039520,-500.0,0.00021999,2]
[312884024,1706403039530,-500.0,0.00021999,2]
[312884025,1706403039541,-500.0,0.00021999,2]
[312884026,1706403039550,-500.0,0.00021999,2]
[312884027,1706403039560,-500.0,0.00021999,2]
[312884028,1706403039569,-500.0,0.00021999,2]
[312884029,1706403039579,-619.87643609,0.00021999,2]
[312884030,1706403039588,-293.70793193,0.00022,4]
[312884031,1706403039597,-2036.12411825,0.00022,2]
[312884032,1706403039607,-3971.98419525,0.00022,2]
[312884033,1706403039616,-426.38170713,0.00022,2]
[312884034,1706403039625,-327.61566675,0.00022,2]
[312884035,1706403039634,-164.09330822,0.00022,2]
[312884036,1706403039644,-168.803845,0.00022017,2]
[312884037,1706403039655,-166.666666,0.00022431,2]
[312884038,1706403039664,-166.666666,0.00022944,2]
[312884039,1706403039674,-1416.67721386,0.00023,2]
[312884040,1706403039683,-166.666666,0.00023456,2]
[312884041,1706403039692,-9947.92180076,0.00023899,2]
[312884042,1706403039701,-2471.53364658,0.000239,2]
[312884043,1706403039711,-166.666666,0.00023969,2]
[312884044,1706403039721,-4017.99473319,0.00024,2]
[312884045,1706403039731,-166.666666,0.00024482,2]
[312884046,1706403039741,-380.0,0.00024658,2]
[312884047,1706403039752,-497.80281475,0.0002496,5]
[312884048,1706403039763,-9120.75,0.0002499,3]
[312884049,1706403039773,-205.47568933,0.00024999,2]
[312884050,1706403039782,-812.11077865,0.00025,2]
[312884051,1706403039792,-4727.98807036,0.00025,2]
[312884052,1706403039802,-7649.9786433,0.00025,2]
[312884053,1706403039811,-167.80993341,0.00025,2]
[312884054,1706403039821,-851.06760442,0.00025,2]
[312884055,1706403039830,-1958.72935728,0.00025,2]
[312884056,1706403039842,-155.02015262,0.00025,2]
[312884057,1706403039851,-260.27250039,0.00025,2]
[312884058,1706403039861,-194.9590979,0.00025479,2]
[312884059,1706403039870,-150.321,0.00026997,2]
[312884061,1706403039880,-290.6944281,0.00027,2]
[312884063,1706403039890,-886.80607906,0.0002728,2]
[312884065,1706403039900,-598.269791,0.00027397,2]
[312884067,1706403039910,-153.0,0.00027671,2]
[312884068,1706403039919,-153.0,0.00027671,2]
[312884069,1706403039928,-199.3339408,0.00027671,2]
[312884070,1706403039938,-199.3339408,0.00027671,2]
[312884071,1706403039947,-200.96358611,0.00028,2]
[312884072,1706403039956,-239.76670397,0.00028,2]
[312884073,1706403039966,-600.0,0.00028,2]
[312884074,1706403039975,-1500.0,0.00028,2]
[312884075,1706403039986,-159.42971699,0.0002828,2]
[312884076,1706403039995,-633.34030395,0.00028644,2]
[312884077,1706403040004,-155.0,0.00028798,2]
[312884078,1706403040013,-2471.53364658,0.000289,2]
[312884079,1706403040022,-598.269791,0.00028919,2]
[312884080,1706403040031,-1933.42796518,0.00029,2]
[312884081,1706403040041,-1000.0,0.00029,2]
[312884082,1706403040049,-310.03720446,0.00029,2]
[312884083,1706403040058,-9132.4701419,0.00029,4]
[312884084,1706403040067,-309.87175152,0.00029,2]
[312884085,1706403040077,-1500.0,0.00029,2]
[312884086,1706403040086,-200.0,0.000291,4]
[312884087,1706403040095,-153.0,0.00029178,2]
[312884088,1706403040106,-523.34168566,0.00029314,2]
[312884089,1706403040116,-153.0,0.00029315,2]
[312884090,1706403040125,-199.3339408,0.00029315,2]
[312884091,1706403040134,-153.0,0.00029315,2]
[312884092,1706403040143,-3485.08832391,0.00029483,2]
[312884093,1706403040151,-158.56416615,0.00029663,2]
[312884094,1706403040160,-5000.0,0.00029763,5]
[312884095,1706403040170,-12345.57386967,0.00029763,2]
[312884096,1706403040178,-5000.0,0.00029763,5]
[312884097,1706403040188,-5000.0,0.00029763,5]
[312884098,1706403040198,-5000.0,0.00029783,5]
[312884099,1706403040206,-5000.0,0.00029791,5]
[312884100,1706403040215,-5000.0,0.00029791,5]
[312884101,1706403040225,-10741.49863867,0.00029798,2]
[312884102,1706403040235,-5000.0,0.00029798,5]
[312884103,1706403040244,-5000.0,0.00029798,5]
[312884104,1706403040253,-5000.0,0.00029798,5]
[312884105,1706403040262,-5000.0,0.00029798,5]
[312884106,1706403040271,-5000.0,0.00029798,5]
[312884107,1706403040280,-5000.0,0.00029798,5]
[312884108,1706403040289,-5000.0,0.00029798,5]
[312884109,1706403040299,-5000.0,0.00029798,5]
[312884110,1706403040310,-5000.0,0.00029798,5]
[312884111,1706403040319,-7257.95117136,0.00029798,3]
[312884112,1706403040327,-5000.0,0.00029798,5]
[312884113,1706403040336,-500.0,0.00029799,2]
[312884114,1706403040346,-500.0,0.00029799,2]
[312884115,1706403040355,-189.74961264,0.00029799,2]
[312884116,1706403040364,-500.0,0.00029799,2]
[312884117,1706403040373,-500.0,0.00029799,2]
[312884118,1706403040383,-500.0,0.00029799,2]
[312884119,1706403040392,-500.0,0.00029799,2]
[312884120,1706403040402,-500.0,0.00029799,2]
[312884121,1706403040411,-500.0,0.00029799,2]
[312884122,1706403040420,-416.27418145,0.00029799,2]
[312884123,1706403040429,-500.0,0.00029799,2]
[312884124,1706403040438,-500.0,0.00029799,2]
[312884125,1706403040447,-500.0,0.00029799,2]
[312884126,1706403040456,-500.0,0.00029799,2]
[312884127,1706403040466,-500.0,0.00029799,2]
[312884128,1706403040475,-500.0,0.00029799,2]
[312884129,1706403040485,-500.0,0.00029799,2]
[312884130,1706403040494,-500.0,0.00029799,2]
[312884131,1706403040503,-500.0,0.00029799,2]
[312884132,1706403040512,-500.0,0.00029799,2]
[312884134,1706403040521,-500.0,0.00029799,2]
[312884136,1706403040531,-500.0,0.00029799,2]
[312884139,1706403040540,-350.0,0.00029799,2]
[312884142,1706403040550,-500.0,0.00029799,2]
[312884144,1706403040559,-500.0,0.00029799,2]
[312884146,1706403040568,-500.0,0.00029799,2]
[312884147,1706403040577,-500.0,0.00029799,2]
[312884148,1706403040586,-500.0,0.00029799,2]
[312884149,1706403040594,-500.0,0.00029799,2]
[312884150,1706403040603,-500.0,0.00029799,2]
[312884151,1706403040612,-250.0,0.00029799,2]
[312884152,1706403040621,-500.0,0.00029799,2]
[312884153,1706403040630,-500.0,0.00029799,2]
[312884154,1706403040640,-500.0,0.00029799,2]
[312884156,1706403040649,-500.0,0.00029799,2]
[312884157,1706403040658,-580.02847464,0.00029799,2]
[312884158,1706403040667,-590.99036074,0.00029799,2]
[312884159,1706403040676,-500.0,0.00029799,2]
[312884160,1706403040685,-500.0,0.00029799,2]
[312884161,1706403040694,-500.0,0.00029799,2]
[312884162,1706403040703,-500.0,0.00029799,2]
[312884163,1706403040712,-500.0,0.00029799,2]
[312884164,1706403040722,-500.0,0.00029799,2]
[312884165,1706403040731,-500.0,0.00029799,2]
[312884166,1706403040740,-500.0,0.00029799,2]
[312884167,1706403040749,-500.0,0.00029799,2]
[312884168,1706403040758,-500.0,0.00029799,2]
[312884169,1706403040768,-500.0,0.00029799,2]
[312884170,1706403040777,-500.0,0.00029799,2]
[312884171,1706403040786,-500.0,0.00029799,2]
[312884172,1706403040796,-500.0,0.00029799,2]
[312884173,1706403040881,-500.0,0.00029799,2]
[312884174,1706403040891,-500.0,0.00029799,2]
[312884175,1706403040900,-500.0,0.00029799,2]
[312884176,1706403040909,-500.0,0.00029799,2]
[312884177,1706403040919,-500.0,0.00029799,2]
[312884178,1706403040928,-500.0,0.00029799,2]
[312884179,1706403040937,-500.0,0.00029799,2]
[312884180,1706403040947,-500.0,0.00029799,2]
[312884181,1706403040956,-298.38,0.00029799,2]
[312884182,1706403040965,-500.0,0.00029799,2]
[312884183,1706403040975,-500.0,0.00029799,2]
[312884184,1706403040985,-500.0,0.00029799,2]
[312884185,1706403040994,-500.0,0.00029799,2]
[312884186,1706403041003,-500.0,0.00029799,2]
[312884187,1706403041013,-500.0,0.00029799,2]
[312884188,1706403041022,-500.0,0.00029799,2]
[312884189,1706403041031,-500.0,0.00029799,2]
[312884190,1706403041041,-440.77733855,0.00029799,2]
[312884191,1706403041050,-500.0,0.00029799,2]
[312884192,1706403041060,-500.0,0.00029799,2]
[312884193,1706403041069,-520.55288916,0.00029799,2]
[312884194,1706403041079,-500.0,0.00029799,2]
[312884195,1706403041088,-500.0,0.00029799,2]
[312884196,1706403041100,-500.0,0.00029799,2]
[312884197,1706403041111,-500.0,0.00029799,2]
[312884198,1706403041120,-500.0,0.00029799,2]
[312884199,1706403041130,-500.0,0.00029799,2]
[312884200,1706403041139,-500.0,0.00029799,2]
[312884201,1706403041149,-276000.0,0.000298,2]
[312884202,1706403041159,-1000.0,0.00029899,3]
[312884203,1706403041168,-1017.91632499,0.00029899,3]
[312884204,1706403041178,-1329.39776377,0.0002992,2]
[312884205,1706403041187,-5000.0,0.0002992,5]
[312884206,1706403041197,-5000.0,0.0002992,5]
[312884207,1706403041206,-5000.0,0.0002992,5]
[312884208,1706403041215,-5000.0,0.0002992,5]
[312884209,1706403041226,-15893.9014782,0.0002992,3]
[312884210,1706403041235,-5000.0,0.0002992,5]
[312884211,1706403041246,-5000.0,0.0002992,5]
[312884212,1706403041256,-5000.0,0.0002992,5]
[312884213,1706403041267,-5000.0,0.0002992,5]
[312884214,1706403041276,-5000.0,0.00029921,5]
[312884215,1706403041285,-5000.0,0.00029922,5]
[312884216,1706403041297,-5000.0,0.00029922,5]
[312884217,1706403041310,-5000.0,0.00029923,5]
[312884218,1706403041320,-480.768117,0.00029923,2]
[312884219,1706403041330,-480.768117,0.00029923,2]
[312884220,1706403041340,-3539.968714,0.00029923,2]
[312884221,1706403041349,-3539.968714,0.00029923,2]
[312884222,1706403041358,-151.0,0.00029923,2]
[312884223,1706403041367,-2510.76732663,0.00029923,2]
[312884224,1706403041493,-4939.11621237,0.00029923,2]
[312884225,1706403041503,-5263.73331051,0.00029923,2]
[312884256,1706403043646,-600.0,0.00023,2]
[312884257,1706403043658,-4128.95910025,0.00023,2]
[312884258,1706403043671,-521.1292128,0.00023,2]
[312884259,1706403043683,-1061.03455816,0.00023,2]